Cogmind - Beta 16 --- EXPLORER MODE // 2025.11.24 @ 15:07:10 Player: K.K.Y. Result: Destroyed by ZS-D7Q(R) with Subdweller Beam Cannon Performance ------------- Evolutions (0) 0 Regions Visited (3) 600 Robots Destroyed (21) 105 Value Destroyed (633) 633 Prototype IDs (0) 0 Alien Tech Used (0) 0 Bonus (0) 0 TOTAL SCORE: 1338 Bonus ------- None Cogmind --------- Core Integrity 0/250 Matter 300/300 Energy 136/140 System Corruption 0% Temperature Warm (120) Movement Treading (145) Location -10/Subcaves Parts ------- > --- POWER (1) -------- Light Deuterium Engine > --- PROPULSION (2) --- Advanced Treads > --- UTILITY (3) ------ Medium Storage Unit Improved Terrain Scanner > --- WEAPON (2) ------- EM Pulse Gun Mining Laser > --- INVENTORY (10) --- Huge Storage Unit Huge Storage Unit Huge Storage Unit Improved Signal Interpreter Scrap Shield Heavy Particle Cannon Assault Rifle Light Assault Rifle Battle Rifle Peak State ------------ > --- POWER ------------ Light Deuterium Engine > --- PROPULSION ------- Advanced Treads > --- UTILITY ---------- Medium Storage Unit Improved Terrain Scanner > --- WEAPON ----------- EM Pulse Gun Light Assault Rifle > --- INVENTORY -------- Huge Storage Unit Huge Storage Unit Huge Storage Unit Improved Signal Interpreter Heavy Particle Cannon Assault Rifle Light Assault Rifle Mining Laser [Rating: 13] Favorites ----------- Power Light Deuterium Engine Engine Light Deuterium Engine Power Core Light Nuclear Core Propulsion Light Treads Treads Light Treads Utility Medium Storage Unit Device Improved Terrain Scanner Storage Medium Storage Unit Protection Light Armor Plating Weapon Light Assault Rifle Energy Gun EM Pulse Gun Ballistic Gun Light Assault Rifle Special Weapon Mining Laser Build | -11 -10 -10 -10 ------- Run | Yrd Mat Min Sub Slots Evolved 1 | . 1 . . Power . | . . . . Propulsion . | . . . . Utility 1 | . 1 . . Weapon . | . . . . Parts Attached 16 | 6 4 3 3 Power 3 | 1 . 2 . Engine 2 | 1 . 1 . Core 1 | . . 1 . Reactor . | . . . . Propulsion 4 | 2 1 . 1 Treads 4 | 2 1 . 1 Leg . | . . . . Wheel . | . . . . Hover . | . . . . Flight . | . . . . Utility 3 | 2 . 1 . Device 1 | . . 1 . Storage 1 | 1 . . . Processor . | . . . . Hackware . | . . . . Protection 1 | 1 . . . Artifact . | . . . . Weapon 6 | 1 3 . 2 Energy Gun 3 | 1 1 . 1 Energy Cannon . | . . . . Ballistic Gun 2 | . 2 . . Ballistic Cannon . | . . . . Launcher . | . . . . Special Weapon 1 | . . . 1 Impact Weapon . | . . . . Slashing Weapon . | . . . . Piercing Weapon . | . . . . Special Melee Weapon . | . . . . Unidentified Prototypes . | . . . . Parts Lost 3 | . . 3 . Power . | . . . . Propulsion 2 | . . 2 . Utility 1 | . . 1 . Weapon . | . . . . Highest Loss Streak 2 | . . 2 . To Critical Strikes . | . . . . Average Backups 7 | 1 3 9 9 Power . | . . . . Propulsion . | . . . . Utility 3 | . 1 3 4 Weapon 3 | . 1 4 4 Tool/Special . | . . . . Unused Backups 10 | . 2 . 8 Power . | . . . . Propulsion 1 | . 1 . . Utility 5 | . . . 5 Weapon 3 | . . . 3 Tool/Special 1 | . 1 . . Average Slot Usage (%) 61 | . 76 49 70 Engine 10 | . 12 9 12 Core 1 | . . 2 . Treads 12 | . 24 7 10 Device 4 | . . 4 12 Storage 12 | . 12 12 12 Protection 2 | . 8 . . Energy Gun 3 | . 5 . 9 Ballistic Gun 9 | . 12 12 2 Special Weapon 2 | . . . 9 Peak Build Rating 13 | 6 7 9 13 Average Rating 8 | 3 6 7 12 On Entrance 5 | . 6 5 9 Avg Prop Armor Cover (%) . | . . . . Naked Turns . | . . . . Heaviest Build 22 | 20 22 19 19 Greatest Support 40 | 40 40 40 22 Greatest Overweight (x) 5 | . . 5 5 Average Overweight (x) 1 | . . 2 . Largest Inventory Capacity 10 | 10 10 10 10 Average Capacity 9 | 7 10 10 10 Most Carried 10 | 5 8 10 10 Average Carried 7 | 1 3 9 9 Final Capacity 10 | 10 10 10 10 Final Carried 10 | . 8 10 10 Class Distribution -------------------- 100% | Hacker-Mutant Dominant Class ---------------- Hacker-Mutant | -10/Materials Hacker-Mutant | -10/Mines Hacker-Mutant | -10/Subcaves Resources | -11 -10 -10 -10 ----------- Run | Yrd Mat Min Sub Matter Collected 407 | 179 118 78 32 Remotely . | . . . . Salvage Created 705 | . 304 337 64 Parts 38 | . 18 16 4 Haulers Intercepted 1 | . 1 . . Recyclers Shooed . | . . . . Parts Field Recycled . | . . . . Retrieved Matter . | . . . . Parts Self-Destructed . | . . . . Prevented . | . . . . Parts Restored . | . . . . Kills | -11 -10 -10 -10 ------- Run | Yrd Mat Min Sub Combat Hostiles Destroyed 18 | . 8 8 2 Guns 15 | . 6 8 1 Cannons 1 | . . . 1 AOE 2 | . 2 . . Classes Destroyed 6 | . 5 . 1 Worker 1 | . 1 . . Hauler 1 | . 1 . . Watcher 1 | . 1 . . Swarmer 3 | . 3 . . Grunt 13 | . 5 8 . Subdweller 2 | . . . 2 Best Kill Streak 3 | . 3 2 2 Combat Bots Only 2 | . 2 2 2 Max Kills in Single Turn 1 | . 1 1 1 Gunslinging . | . . . . Exploded 1 | . 1 . . Melee . | . . . . Uniques/NPCs Destroyed . | . . . . Combat | -11 -10 -10 -10 -------- Run | Yrd Mat Min Sub Hostile Shots Fired 146 | . 47 78 21 Missed 30 | . 8 16 6 Hits 116 | . 39 62 15 Projectile 116 | . 39 62 15 Critical Strikes 3 | . . 2 1 Damage Taken 1034 | . 341 493 200 Core 262 | . 38 162 62 Absorbed by Shields . | . . . . Ignored by Resistances 645 | . 220 306 119 Core Remaining (%) 100 | 100 . . . Volleys Fired 109 | . 39 53 17 Largest 2 | . 2 1 2 Hottest 140 | . 90 20 140 Shots Fired 127 | . 51 53 23 Gun 121 | . 51 53 17 Cannon . | . . . . Launcher . | . . . . Special 6 | . . . 6 Kinetic 70 | . 15 53 2 Thermal 19 | . 13 . 6 Explosive . | . . . . Electromagnetic 38 | . 23 . 15 Robot Hit Streak 37 | . 20 37 15 Robot Miss Streak 3 | . 3 1 . Penetration Max . | . . . . Secondary Targets . | . . . . Shots Hit Robots 101 | . 38 50 13 Core Hits 47 | . 19 22 6 Critical Kills 2 | . 1 1 . Critical Parts Destroyed 1 | . . 1 . Critical Strikes 6 | . 4 2 . Burn 3 | . 3 . . Destroy 3 | . 1 2 . Melee Attacks . | . . . . Impact . | . . . . Slashing . | . . . . Piercing . | . . . . Sneak Attacks . | . . . . Combat Hostiles . | . . . . Follow-up Attacks . | . . . . Damage Inflicted 1190 | . 603 419 168 Guns 983 | . 444 419 120 Cannons . | . . . . Explosions 132 | . 132 . . Melee . | . . . . Ramming 27 | . 27 . . Kinetic 509 | . 90 419 . Thermal 268 | . 220 . 48 Explosive . | . . . . Electromagnetic 386 | . 266 . 120 Impact . | . . . . Slashing . | . . . . Piercing . | . . . . Highest Corruption . | . . . . Average Corruption . | . . . . Corruption Purged . | . . . . Corruption Blocked . | . . . . Overload Shots . | . . . . Overflow Damage 35 | . 35 . . Projectiles . | . . . . Explosions 35 | . 35 . . Melee . | . . . . Knockbacks . | . . . . Impact . | . . . . Kinetic . | . . . . Secondary . | . . . . Self-Inflicted Damage 92 | . 92 . . Shots 2 | . 2 . . Rammed 10 | . 9 1 . Targets Rammed 11 | . 10 1 . Kicked . | . . . . Crushed 1 | . 1 . . Highest Temperature 347 | . 347 53 130 Average Temperature 74 | . 98 14 120 Received Heat Transfer 793 | . 126 483 184 Effects 1 | . 1 . . Short Circuit 1 | . 1 . . Siege Activations . | . . . . Martial Activations . | . . . . Shielding Activations . | . . . . Robots Disrupted . | . . . . Combat Hostiles . | . . . . Robots Corrupted . | . . . . Combat Hostiles . | . . . . Parts Fried 5 | . 3 . 2 Impact Corruptions . | . . . . Robots Melted . | . . . . Combat Hostiles . | . . . . Parts Melted . | . . . . Heat Transferred 731 | . 631 . 100 Parts Sabotaged . | . . . . Parts Stolen . | . . . . Parts Stripped . | . . . . Power Chain Reactions 3 | . 3 . . Alert | -11 -10 -10 -10 ------- Run | Yrd Mat Min Sub Maximum Alert Level . | . . . . Low Security (%) 100 | 100 100 100 . Level 1 . | . . . . Level 2 . | . . . . Level 3 . | . . . . Level 4 . | . . . . Level 5 . | . . . . High Security . | . . . . Max Security . | . . . . Peak Influence 116 | . 116 50 . Initial . | . . . . Average 9 | . 25 2 . Influence Increases 467 | . 262 205 . Destroy 0b10 Robot/C 320 | . 160 160 . Destroy 0b10 Robot/NC 15 | . 15 . . Destroy Leader 74 | . 44 30 . Successful Hack 10 | . 10 . . Disable Machine 4 | . 4 . . Destroy Structure 29 | . 29 . . Lose Combat Pursuer 15 | . . 15 . Influence Decreases 467 | . 262 205 . Time Decay 462 | . 262 200 . Lost Part 5 | . . 5 . Squads Dispatched 2 | . 1 1 . Investigation 2 | . 1 1 . Extermination . | . . . . Reinforcement . | . . . . Assault . | . . . . Garrison . | . . . . Intercept . | . . . . Searches Triggered . | . . . . Construction Impeded . | . . . . Haulers Reinforced . | . . . . Active Scanning Responses . | . . . . Cargo Convoy Interrupts . | . . . . Stealth | -11 -10 -10 -10 --------- Run | Yrd Mat Min Sub Distress Signals 1 | . 1 . . Communications Jammed . | . . . . Distress Signals . | . . . . Times Spotted 29 | . 16 9 4 Peak Tracking Total 4 | . 4 2 2 Tactical Retreats 1 | . . 1 . Traps | -11 -10 -10 -10 ------- Run | Yrd Mat Min Sub Traps Triggered 4 | . 4 . . Indirectly . | . . . . Trap Hack Attempts . | . . . . Triggered . | . . . . Disarmed . | . . . . Reprogrammed . | . . . . Reused . | . . . . Traps Extracted . | . . . . Installed . | . . . . Triggered . | . . . . Machines | -11 -10 -10 -10 ---------- Run | Yrd Mat Min Sub Machines Disabled 1 | . 1 . . Max in Single Turn 1 | . 1 . . Machines Repaired . | . . . . Machines Dismantled . | . . . . Machines Sabotaged . | . . . . Overloaded Fab Kills . | . . . . Hacking | -11 -10 -10 -10 --------- Run | Yrd Mat Min Sub Machines Accessed 8 | . 7 1 . Terminals 6 | . 6 . . Fabricators . | . . . . Repair Stations . | . . . . Recycling Units 1 | . 1 . . Scanalyzers . | . . . . Garrison Access . | . . . . Total Hacks 17 | . 16 1 . Successful 13 | . 12 1 . Failed 4 | . 4 . . Catastrophic . | . . . . Database Lockouts . | . . . . Manual 10 | . 10 . . Terminals 12 | . 12 . . Fabricators . | . . . . Repair Stations . | . . . . Recycling Units 4 | . 4 . . Scanalyzers . | . . . . Garrison Access . | . . . . Terminal Hacks 2 | . 1 1 . Open Door 1 | . . 1 . Zone Layout 1 | . 1 . . Fabricator Hacks . | . . . . Repair Station Hacks . | . . . . Recycling Unit Hacks 3 | . 3 . . Retrieve Components 3 | . 3 . . Scanalyzer . | . . . . Garrison Access Hacks . | . . . . Unauthorized Hacks 6 | . 6 . . Terminals 6 | . 6 . . Botnet 6 | . 6 . . Fabricators . | . . . . Repair Stations . | . . . . Recycling Units . | . . . . Scanalyzers . | . . . . Garrison Access . | . . . . Data Cores Recovered . | . . . . Used . | . . . . Hacking Detections 3 | . 3 . . Full Trace Events 1 | . 1 . . Feedback Events . | . . . . Feedback Blocked . | . . . . Robot Schematics Acquired . | . . . . Robots Built . | . . . . Authchips . | . . . . Time . | . . . . Total Robot Build Rating . | . . . . Part Schematics Acquired . | . . . . Parts Built . | . . . . Authchips . | . . . . Time . | . . . . Total Part Build Rating . | . . . . Part Studies Acquired . | . . . . Parts Repaired . | . . . . Time . | . . . . Parts Recycled . | . . . . Recycled Matter . | . . . . Retrieved Matter . | . . . . Retrieved Components . | . . . . Parts Scanalyzed . | . . . . Part Schematics Acquired . | . . . . Parts Damaged . | . . . . Bothacking | -11 -10 -10 -10 ------------ Run | Yrd Mat Min Sub Used RIF Installer . | . . . . Robots Hacked . | . . . . Non-combat . | . . . . Combat . | . . . . Robot Hacks Applied . | . . . . Relay Couplers Released . | . . . . Fabnet Peak Effective % . | . . . . Robots Rewired . | . . . . Allies Hacked . | . . . . Hacks Repelled . | . . . . Allies | -11 -10 -10 -10 -------- Run | Yrd Mat Min Sub Total Allies . | . . . . Largest Group . | . . . . Highest-Rated Group . | . . . . Highest-Rated Ally . | . . . . Total Orders . | . . . . Ally Attacks . | . . . . Total Damage . | . . . . Kills . | . . . . Allies Corrupted . | . . . . Allies Melted . | . . . . Intel | -11 -10 -10 -10 ------- Run | Yrd Mat Min Sub Active Infowar (turns) 1435 | . . 604 831 Terrain 1435 | . . 604 831 Robot Analysis Total . | . . . . Derelict Logs Recovered 1 | . . 1 . Drone Launches . | . . . . Drone Recoveries . | . . . . Exploration | -11 -10 -10 -10 ------------- Run | Yrd Mat Min Sub Turns Passed 3503 | 43 830 1799 831 Spaces Moved 1697 | 34 435 751 477 Core 384 | 20 . 320 44 Treads 1313 | 14 435 431 433 Legs . | . . . . Wheels . | . . . . Hover . | . . . . Flight . | . . . . Fastest Speed 50 | 50 160 160 145 Average Speed 184 | 95 160 219 159 Slowest Speed 300 | 160 160 300 300 Overloaded Moves . | . . . . Propulsion Burnouts . | . . . . Robots Hopped . | . . . . Potential Cave-ins . | . . . . Cave-ins Triggered . | . . . . Exploration Rate (%) 48 | 3 64 100 26 Regions Visited 3 Branch Regions 2 Pre-discovered Areas . | . . . . Known Exits Taken 3 | 1 1 1 . Unknown Exits Taken . | . . . . Scrap Searched . | . . . . Spaces Dug . | . . . . Terrain Destroyed 31 | . 31 . . Melee . | . . . . Projectile . | . . . . AOE 31 | . 31 . . Terrain Rammed . | . . . . Walls Destroyed . | . . . . Machines Disabled . | . . . . Actions | -11 -10 -10 -10 --------- Run | Yrd Mat Min Sub Total 1935 | 44 517 858 516 Wait 70 | . 11 44 15 Move 1694 | 33 434 750 477 Hop . | . . . . Pick Up 25 | 5 14 4 2 Fast Attach 2 | 1 . 1 . Attach 13 | 5 4 1 3 Detach 2 | . 1 . 1 Swap 3 | . 1 2 . Drop 6 | . 3 2 1 Fire 109 | . 39 53 17 Melee . | . . . . Ram 1 | . . 1 . Kick . | . . . . Crush 10 | . 10 . . Escape Stasis . | . . . . Rewire . | . . . . Trap . | . . . . Miscellaneous . | . . . . Route ------- -11/Scrapyard -10/Materials (discovered 4 exits: *Mat x2 / *Min / *Sub) -10/Mines (discovered 3 exits: *Mat x2 / *Sub) -10/Subcaves History --------- Turn | Location | Event 11 | -11/Scrapyard | Identified exit to Materials 11 | -11/Scrapyard | Discovered exit to Materials (range 15) 44 | -11/Scrapyard | Entered Materials 44 | -10/Materials | Evolved 1 slot: Utility x1 245 | -10/Materials | Identified exit to Materials 245 | -10/Materials | Discovered exit to Materials (range 16) 348 | -10/Materials | Build established: Hacker-Mutant 353 | -10/Materials | Identified exit to Mines 353 | -10/Materials | Discovered exit to Mines (range 12) 627 | -10/Materials | Discovered exit to Materials (range 7) 770 | -10/Materials | Identified exit to Subcaves 770 | -10/Materials | Discovered exit to Subcaves (range 8) 874 | -10/Materials | Entered Mines 1065 | -10/Mines | Discovered exit to Materials (range 8) 1091 | -10/Mines | Core integrity fell below 50% 1379 | -10/Mines | Discovered exit to Materials (range 14) 1523 | -10/Mines | Met a Derelict shopkeep closing up shop 1605 | -10/Mines | Learned Materials security intel 2634 | -10/Mines | Discovered exit to Subcaves (range 13) 2673 | -10/Mines | Entered Subcaves 2674 | -10/Subcaves | Shifting Twisted Machinery released Mak. Hammer 2788 | -10/Subcaves | Shifting Twisted Machinery released Shrapnel Trap 3197 | -10/Subcaves | A swath of the cavern ceiling suddenly collapsed 3197 | -10/Subcaves | Shifting Twisted Machinery released Battle Rifle 3210 | -10/Subcaves | Shifting Twisted Machinery released Flamer 3339 | -10/Subcaves | Core integrity fell below 20% 3473 | -10/Subcaves | A swath of the cavern ceiling suddenly collapsed 3504 | -10/Subcaves | Destroyed by ZS-D7Q(R) with Subdweller Beam Cannon Last Messages --------------- 03209_ Dropped Lgt. Assault Rifle. 03209_ Acquired Battle Rifle. Flamer falls loose from the Twisted Machinery. 03215_ 19-FTA(z): "She is not going to be happy we haven't found any suitable candidates yet." 03231_ Subatomizers dissect the Lgt. Assault Rifle. 03244_ Subatomizers dissect the Lgt. Assault Rifle, destroying it. 03338_ 4N-6DN(R) destroyed. 03357_ Sub. Monowheel fried. 03357_ Sub. Optics fried. 03357_ T7-6M0(R) destroyed. 03359_ Acquired 8 matter. 03361_ Acquired 24 matter. 03363_ Subatomizers dissect the Corrupted Disposable Heat Sink. A swath of the cavern ceiling suddenly collapses. 03502_ Critical hit (Meltdown: +160). Map ----- +----------------------------------------------------+ | ?????????????????????????????????????????????????? | | ?????????????????????????????????????????????????? | | ?????????????????????????????????????????????#?### | | ???????????????????????????????????????????????# | | ???????????????????????????????????????????????# | | ???????????????????????????????????????????????# | | ???????????????????????????????????????????????# | | ???????????????????????????????????????????????## | | ???????????????????????????????????????????????## | | ???????????????????????????????????????????????# | | ????????????????????????????????????????????#??# | | ???????????????????????????????????????????#??## | | ??????????????????????????????????????#????????## | | ????????????????????????????????????????????????## | | ?????????????????#?????????????????????#?????????? | | ?????????????????????????????????????#???????#???? | | ????????????????#????????#??????????????????????#? | | ?????????????????????????????????????????????????? | | ?????????????????????????????#??????????????#????? | | ?????????????????##???????????????##???????#?????? | | ?????????????????? ????#####?? ##"#?###?????????? | | ???????????????????? ?###"#"####"#"### #???#????# | | ????????????????????? #;""" ; "#"#"#"#" ###?##### | | ??????????????????# ;;##;##" #""#"""### ##### | | ??????????????????#???##"#;##### "# ""#"# ### | | ??????????????????????# ;@;;#??## ####"# [ # | | ?????????????????????# ;##;#???## " "" ### | | ???????????????????# ??##????####"## ##?? | | ??????????????????#R R ???????????####### #??# | | ?????????????????# "" "??????????????????## ##??? | | ?????????????????## " "????????????????????###???? | | ??????????????????#####??????#????#?????#????????? | | ?????????????????????????????????????????????#?#?? | | ??????????????????#??????????????????????#???????? | | ????????????????????????????????#??????#?????????# | | ????????????????????????????????????????????????## | | ????????????????????????????????????????????#??## | | ???????????????????????????????????????????????# | | ??????????????????????????????????????????????## | | ???????????????????????????????????????????????# | | ???????????????????????????????????????????#???## | | ????????????????????????????????????????????????# | | ????????????????????????????????????????????????## | | ???????????????????????????????????????????#?????# | | ????????????????????????????????????????????????## | | ?????????????????????????????????????????????????# | | ????????????????????????????????????????????????## | | ????????????????????????????????????????????????#? | | ????????????????????????????????????????????#????? | | ?????????????????????????????????????????????????? | +----------------------------------------------------+ Best States ------------- Heat Dissipation 25 Energy Generation 14 Energy Capacity 250 Matter Stores 300 Matter Capacity 300 Sight Range 16 Terrain Scan Range 16 Terrain Scan Density 10 Armor Coverage 150 Resistance: KI 35 Resistance: TH 35 Resistance: EX 35 Resistance: EM 35 Resistance: I 35 Resistance: S 35 Resistance: P 35 Evasion (%) 50 Recoil Reduction 2 Offensive Hacking 20 Item Schematics ----------------- None Robot Schematics ------------------ None Fabricated ------------ Nothing Repaired ---------- Nothing Studied --------- None Alien Tech Used ----------------- None Achievements -------------- None Challenges ------------ None Game ------ Seed XenonSchematicDriver Manual? 0 Play Time 00:13:42 Cumulative 138.3 hours Start 2025.11.24 @ 14:53:38 End 2025.11.24 @ 15:07:10 Sessions 1 Manual Loads 0 Difficulty Explorer Special Mode None Game No. 159 Rogue 0 Adventurer 0 Explorer 159 Win Type - Total 0 Types 0/0/0/0/0/0/0/0/0/0 Lore% 68 Gallery% 66 Achievement% 51 Wizard Run 0 Options --------- Layout 1 ASCII 0 Keyboard 0 Movement Mouse Keybinds 0 Fullscreen 1 Font 24/Smallcaps Map View 50x35 Zoom Use 0% Tactical HUD 1 Map Filters NONE Filters NONE Steam 1 RUN: d1888ef7-8d0a-4126-98be-9ace194baef8